fUST/lending_fUST_20250109
["ID","MTS","AMOUNT","RATE_DAILY","PERIOD"]
[348234580,1736410232768,-500.0,0.00019172,2]
[348234581,1736410232777,-184.92983654,0.00019172,2]
[348234582,1736410232786,-500.0,0.00019172,2]
[348234583,1736410232795,-500.0,0.00019172,2]
[348234584,1736410232804,-500.0,0.00019172,2]
[348234585,1736410232814,-500.0,0.00019172,2]
[348234586,1736410232823,-281.53735091,0.00019172,2]
[348234587,1736410232832,-500.0,0.00019172,2]
[348234588,1736410232841,-500.0,0.00019172,2]
[348234589,1736410232850,-500.0,0.00019172,2]
[348234590,1736410232860,-500.0,0.00019172,2]
[348234591,1736410232869,-500.0,0.00019172,2]
[348234592,1736410232878,-500.0,0.00019172,2]
[348234593,1736410232888,-500.0,0.00019172,2]
[348234594,1736410232897,-500.0,0.00019172,2]
[348234595,1736410232908,-500.0,0.00019172,2]
[348234596,1736410232917,-500.0,0.00019172,2]
[348234597,1736410232927,-500.0,0.00019172,2]
[348234598,1736410232938,-500.0,0.00019172,2]
[348234599,1736410232947,-500.0,0.00019172,2]
[348234600,1736410232956,-500.0,0.00019172,2]
[348234601,1736410232965,-580.95366882,0.00019172,2]
[348234602,1736410232974,-500.0,0.00019172,2]
[348234603,1736410232983,-500.0,0.00019172,2]
[348234604,1736410232993,-500.0,0.00019172,2]
[348234605,1736410233002,-500.0,0.00019172,2]
[348234606,1736410233012,-500.0,0.00019172,2]
[348234607,1736410233021,-500.0,0.00019172,2]
[348234608,1736410233031,-500.0,0.00019172,2]
[348234609,1736410233041,-572.90924307,0.00019172,2]
[348234610,1736410233051,-500.0,0.00019172,2]
[348234611,1736410233060,-500.0,0.00019172,2]
[348234612,1736410233069,-500.0,0.00019172,2]
[348234613,1736410233079,-500.0,0.00019172,2]
[348234614,1736410233088,-500.0,0.00019172,2]
[348234615,1736410233098,-500.0,0.00019172,2]
[348234616,1736410233107,-500.0,0.00019172,2]
[348234617,1736410233117,-500.0,0.00019172,2]
[348234618,1736410233127,-500.0,0.00019172,2]
[348234619,1736410233137,-500.0,0.00019172,2]
[348234620,1736410233146,-500.0,0.00019172,2]
[348234621,1736410233158,-500.0,0.00019172,2]
[348234622,1736410233168,-500.0,0.00019172,2]
[348234623,1736410233178,-500.0,0.00019172,2]
[348234624,1736410233187,-500.0,0.00019172,2]
[348234625,1736410233197,-500.0,0.00019172,2]
[348234626,1736410233209,-500.0,0.00019172,2]
[348234627,1736410233219,-500.0,0.00019172,2]
[348234628,1736410233229,-500.0,0.00019172,2]
[348234629,1736410233239,-500.0,0.00019172,2]
[348234630,1736410233249,-500.0,0.00019172,2]
[348234631,1736410233262,-500.0,0.00019172,2]
[348234632,1736410233271,-500.0,0.00019172,2]
[348234633,1736410233279,-500.0,0.00019172,2]
[348234634,1736410233289,-500.0,0.00019172,2]
[348234635,1736410233299,-500.0,0.00019172,2]
[348234636,1736410233309,-500.0,0.00019172,2]
[348234637,1736410233318,-500.0,0.00019172,2]
[348234638,1736410233328,-500.0,0.00019172,2]
[348234639,1736410233337,-500.0,0.00019172,2]
[348234640,1736410233347,-519.40408706,0.00019172,2]
[348234641,1736410233356,-502.00796745,0.00019173,2]
[348234642,1736410233366,-501.63187538,0.00019173,2]
[348234643,1736410233375,-500.0,0.00019173,2]
[348234644,1736410233385,-160.69817172,0.00019173,2]
[348234645,1736410233395,-500.0,0.00019173,2]
[348234646,1736410233411,-265.93290964,0.00019173,2]
[348234647,1736410233420,-3766.36986016,0.00019178,2]
[348234648,1736410233430,-587.69685193,0.00019178,2]
[348234649,1736410233440,-500.0,0.00019178,2]
[348234650,1736410233449,-361.4,0.00019178,2]
[348234651,1736410233459,-500.0,0.00019178,2]
[348234652,1736410233469,-500.0,0.00019178,2]
[348234653,1736410233479,-500.0,0.00019178,2]
[348234654,1736410233488,-500.0,0.00019178,2]
[348234655,1736410233498,-500.0,0.00019178,2]
[348234656,1736410233508,-500.0,0.00019178,2]
[348234657,1736410233518,-384.77278925,0.00019178,2]
[348234658,1736410233528,-500.0,0.00019178,2]
[348234659,1736410233537,-500.0,0.00019178,2]
[348234660,1736410233547,-500.0,0.00019178,2]
[348234661,1736410233557,-2000.14,0.00019178,2]
[348234662,1736410233566,-500.0,0.00019178,2]
[348234663,1736410233575,-500.0,0.00019178,2]
[348234664,1736410233584,-500.0,0.00019178,2]
[348234665,1736410233594,-500.0,0.00019178,2]
[348234666,1736410233604,-500.0,0.00019178,2]
[348234667,1736410233613,-500.0,0.00019178,2]
[348234668,1736410233623,-500.0,0.00019178,2]
[348234669,1736410233633,-500.0,0.00019178,2]
[348234670,1736410233642,-500.0,0.00019178,2]
[348234671,1736410233653,-500.0,0.00019178,2]
[348234672,1736410233663,-500.0,0.00019178,2]
[348234673,1736410233672,-500.0,0.00019178,2]
[348234674,1736410233681,-500.0,0.00019178,2]
[348234675,1736410233690,-500.0,0.00019178,2]
[348234676,1736410233699,-500.0,0.00019178,2]
[348234677,1736410233709,-500.0,0.00019178,2]
[348234678,1736410233718,-544.50971279,0.00019178,2]
[348234679,1736410233728,-500.0,0.00019178,2]
[348234680,1736410233738,-500.0,0.00019178,2]
[348234681,1736410233747,-500.0,0.00019178,2]
[348234682,1736410233757,-616.34,0.00019178,2]
[348234683,1736410233766,-500.0,0.00019178,2]
[348234684,1736410233776,-925.21,0.00019178,2]
[348234685,1736410233785,-500.0,0.00019178,2]
[348234686,1736410233795,-500.0,0.00019178,2]
[348234687,1736410233805,-500.0,0.00019178,2]
[348234688,1736410233815,-503.51070332,0.00019178,2]
[348234689,1736410233825,-500.0,0.00019178,2]
[348234690,1736410233834,-500.0,0.00019178,2]
[348234691,1736410233844,-4063.2,0.00019178,2]
[348234692,1736410233853,-670.53,0.00019178,2]
[348234693,1736410233863,-838.93,0.00019178,2]
[348234694,1736410233872,-500.0,0.00019178,2]
[348234695,1736410233882,-500.0,0.00019178,2]
[348234696,1736410233891,-6301.41227836,0.00019178,2]
[348234697,1736410233913,-372.83862306,0.00019178,2]
[348234698,1736410233936,-381.96457218,0.00019178,2]
[348234699,1736410233955,-101.7145264,0.00019178,2]
[348234700,1736410233965,-500.0,0.00019178,2]
[348234701,1736410233976,-500.0,0.00019178,2]
[348234702,1736410233986,-282.29898294,0.00019178,2]
[348234740,1736410238539,-500.0,0.00019178,2]
[348234742,1736410238549,-500.0,0.00019178,2]
[348234744,1736410238558,-500.0,0.00019178,2]
[348234758,1736410238672,-500.0,0.00019178,2]
[348234760,1736410238685,-500.0,0.00019178,2]
[348234762,1736410238695,-500.0,0.00019178,2]
[348234764,1736410238704,-500.0,0.00019178,2]
[348234766,1736410238714,-500.0,0.00019178,2]
[348234768,1736410238723,-500.0,0.00019178,2]
[348234770,1736410238733,-500.0,0.00019178,2]
[348234772,1736410238743,-500.0,0.00019178,2]
[348234774,1736410238752,-500.0,0.00019178,2]
[348234776,1736410238762,-500.0,0.00019178,2]
[348234778,1736410238771,-534.63,0.00019178,2]
[348234780,1736410238781,-507.4,0.00019178,2]
[348234782,1736410238790,-516.71,0.00019178,2]
[348234785,1736410238800,-500.0,0.00019178,2]
[348234787,1736410238810,-500.0,0.00019178,2]
[348234789,1736410238819,-500.0,0.00019178,2]
[348234791,1736410238828,-500.0,0.00019178,2]
[348234794,1736410238839,-500.0,0.00019178,2]
[348234796,1736410238849,-500.0,0.00019178,2]
[348234798,1736410238858,-500.0,0.00019178,2]
[348234800,1736410238867,-500.0,0.00019178,2]
[348234801,1736410238876,-500.0,0.00019178,2]
[348234804,1736410238886,-500.0,0.00019178,2]
[348234806,1736410238895,-500.0,0.00019178,2]
[348234808,1736410238905,-1872.36,0.00019178,2]
[348234809,1736410238914,-500.0,0.00019178,2]
[348234812,1736410238925,-500.0,0.00019178,2]
[348234814,1736410238936,-503.0872121,0.00019178,2]
[348234816,1736410238946,-500.0,0.00019178,2]
[348234818,1736410238955,-500.0,0.00019178,2]
[348234820,1736410238964,-196.27071791,0.00019451,2]
[348234822,1736410238973,-500.0,0.00019451,2]
[348234824,1736410238983,-330.99477055,0.00019451,2]
[348234826,1736410238995,-260.46123918,0.00019451,2]
[348234828,1736410239004,-335.03927308,0.00019451,2]
[348234830,1736410239014,-500.0,0.00019451,3]
[348234832,1736410239023,-512.79443002,0.00019451,3]
[348234834,1736410239032,-500.0,0.00019452,3]
[348234836,1736410239042,-500.0,0.00019452,3]
[348234838,1736410239052,-598.62,0.00019452,3]
[348234840,1736410239061,-500.0,0.00019452,3]
[348234842,1736410239070,-181.9870577,0.00019452,3]
[348234844,1736410239079,-2000.14,0.00019452,3]
[348234846,1736410239089,-500.0,0.00019452,3]
[348234848,1736410239098,-500.0,0.00019452,3]
[348234850,1736410239107,-500.0,0.00019452,3]
[348234852,1736410239117,-500.0,0.00019452,3]
[348234854,1736410239127,-500.0,0.00019452,3]
[348234856,1736410239136,-500.0,0.00019452,3]
[348234858,1736410239145,-500.0,0.00019452,3]
[348234860,1736410239156,-5.57879702,0.00019452,3]
[348234864,1736410239187,-494.42120298,0.00019452,3]
[348234866,1736410239197,-500.0,0.00019452,3]
[348234868,1736410239206,-567.72,0.00019452,3]
[348234870,1736410239216,-315.740642,0.00019452,3]
[348234872,1736410239226,-4063.2,0.00019452,2]
[348234875,1736410239235,-670.53,0.00019452,3]
[348234877,1736410239245,-838.93,0.00019452,3]
[348234879,1736410239254,-500.0,0.00019452,3]
[348234881,1736410239263,-500.0,0.00019452,3]
[348234883,1736410239273,-7157.93,0.00019452,3]
[348234885,1736410239282,-500.0,0.00019452,3]
[348234887,1736410239292,-585.27947464,0.00019452,3]
[348234889,1736410239301,-500.0,0.00019452,3]
[348234891,1736410239311,-500.0,0.00019452,3]
[348234893,1736410239320,-500.0,0.00019452,3]
[348234895,1736410239329,-500.0,0.00019452,3]
[348234897,1736410239339,-534.63,0.00019452,3]
[348234899,1736410239348,-507.4,0.00019452,3]
[348234901,1736410239357,-500.0,0.00019452,2]
[348234903,1736410239367,-500.0,0.00019452,3]
[348234905,1736410239377,-500.0,0.00019452,3]
[348234907,1736410239386,-500.0,0.00019452,3]
[348234909,1736410239396,-500.0,0.00019452,3]
[348234911,1736410239406,-500.0,0.00019452,3]
[348234913,1736410239415,-631.8,0.00019452,3]
[348234915,1736410239424,-500.0,0.00019452,3]
[348234917,1736410239434,-500.0,0.00019452,3]
[348234919,1736410239443,-1872.36,0.00019452,3]
[348234921,1736410239452,-500.0,0.00019452,3]
[348234923,1736410239461,-500.0,0.00019452,3]
[348234925,1736410239471,-585.48,0.00019452,3]
[348234927,1736410239480,-500.0,0.00019721,2]
[348234929,1736410239489,-502.17178453,0.00019722,2]
[348234931,1736410239498,-502.1682994,0.00019722,2]
[348234933,1736410239507,-263.64496828,0.00019722,2]
[348234935,1736410239516,-500.82980106,0.00019722,2]
[348234937,1736410239526,-500.0,0.00019724,3]
[348234939,1736410239535,-500.0,0.00019724,3]
[348234941,1736410239544,-500.0,0.00019724,3]
[348234943,1736410239554,-500.0,0.00019724,3]
[348234945,1736410239563,-500.0,0.00019725,3]
[348234947,1736410239572,-500.0,0.00019726,3]
[348234949,1736410239582,-500.0,0.00019726,3]
[348234951,1736410239591,-2000.14,0.00019726,3]
[348234953,1736410239600,-185.48,0.00019726,3]
[348234955,1736410239609,-160.64,0.00019726,3]
[348234957,1736410239619,-500.0,0.00019726,3]
[348234959,1736410239628,-516.51,0.00019726,3]
[348234961,1736410239637,-258.7886486,0.00019726,3]
[348234963,1736410239646,-500.0,0.00019726,3]
[348234965,1736410239655,-4063.2,0.00019726,2]
[348234967,1736410239664,-670.53,0.00019726,3]
[348234969,1736410239673,-838.93,0.00019726,3]
[348234971,1736410239683,-500.0,0.00019726,3]
[348234973,1736410239692,-500.0,0.00019726,3]
[348234975,1736410239701,-7157.93,0.00019726,3]
[348234977,1736410239711,-500.0,0.00019726,3]
[348234979,1736410239720,-500.0,0.00019726,3]
[348234981,1736410239729,-500.0,0.00019726,3]
[348234983,1736410239739,-500.0,0.00019726,3]
[348234985,1736410239748,-534.63,0.00019726,3]
[348234987,1736410239757,-507.4,0.00019726,3]
[348234989,1736410239767,-500.0,0.00019726,2]
[348234991,1736410239776,-500.0,0.00019726,3]
[348234993,1736410239786,-552.58,0.00019726,3]
[348234995,1736410239795,-500.0,0.00019726,3]
[348234997,1736410239804,-1872.36,0.00019726,3]
[348234999,1736410239813,-500.0,0.00019726,3]
[348235001,1736410239822,-503.0759426,0.00019733,2]
[348235003,1736410239832,-188.95286415,0.00019902,2]
[348235005,1736410239841,-189.15896495,0.00019906,2]
[348235007,1736410239851,-500.0,0.00019999,3]
[348235009,1736410239860,-1589.0,0.0002,2]
[348235011,1736410239869,-500.0,0.0002,3]
[348235013,1736410239878,-2000.14,0.0002,3]
[348235015,1736410239887,-500.0,0.0002,3]
[348235017,1736410239897,-4063.2,0.0002,2]
[348235019,1736410239907,-670.53,0.0002,3]
[348235021,1736410239917,-838.93,0.0002,3]
[348235023,1736410239926,-500.0,0.0002,3]
[348235025,1736410239937,-161.84,0.0002,3]
[348235027,1736410239948,-7157.93,0.0002,3]
[348235029,1736410239957,-500.0,0.0002,3]
[348235032,1736410239967,-500.0,0.0002,3]
[348235034,1736410239977,-500.0,0.0002,3]
[348235036,1736410239987,-534.63,0.0002,3]
[348235038,1736410239996,-507.4,0.0002,3]
[348235040,1736410240005,-500.0,0.0002,2]
[348235043,1736410240014,-355.83,0.0002,3]
[348235045,1736410240024,-500.0,0.0002,3]
[348235047,1736410240034,-1872.36,0.0002,3]
[348235049,1736410240044,-500.0,0.00020013,3]
[348235051,1736410240054,-500.0,0.00020272,3]
[348235053,1736410240063,-500.0,0.00020273,3]
[348235055,1736410240073,-2000.14,0.00020273,3]
[348235057,1736410240082,-500.0,0.00020273,3]
[348235059,1736410240091,-4063.2,0.00020273,2]
[348235062,1736410240101,-670.53,0.00020273,3]
[348235064,1736410240110,-838.93,0.00020273,3]
[348235066,1736410240120,-7157.93,0.00020273,3]
[348235068,1736410240130,-500.0,0.00020273,3]
[348235070,1736410240139,-500.0,0.00020273,3]
[348235072,1736410240149,-500.0,0.00020273,3]
[348235075,1736410240165,-534.63,0.00020273,3]
[348235077,1736410240174,-507.4,0.00020273,3]
[348235079,1736410240184,-500.0,0.00020273,2]
[348235081,1736410240192,-500.0,0.00020273,3]
[348235083,1736410240202,-1872.36,0.00020273,3]
[348235085,1736410240213,-220.448631,0.00020447,2]
[348235087,1736410240223,-500.0,0.0002049,3]
[348235089,1736410240233,-196.44,0.00020546,3]
[348235091,1736410240242,-500.0,0.00020547,3]
[348235093,1736410240252,-2000.14,0.00020547,3]
[348235095,1736410240261,-500.0,0.00020547,3]
[348235097,1736410240271,-4063.2,0.00020547,2]
[348235099,1736410240280,-670.53,0.00020547,3]
[348235101,1736410240290,-838.93,0.00020547,3]
[348235103,1736410240300,-7157.93,0.00020547,3]
[348235105,1736410240309,-500.0,0.00020547,3]
[348235107,1736410240319,-500.0,0.00020547,3]
[348235109,1736410240328,-500.0,0.00020547,3]
[348235111,1736410240337,-534.63,0.00020547,3]
[348235113,1736410240347,-507.4,0.00020547,3]
[348235115,1736410240356,-185.74510985,0.00020547,2]
[348235117,1736410240365,-500.0,0.00020547,3]
[348235119,1736410240374,-1872.36,0.00020547,3]
[348235121,1736410240384,-188.95286415,0.00020726,2]
[348235123,1736410240393,-249.66117748,0.00020773,2]
[348235125,1736410240403,-187.37776064,0.00020802,2]
[348235127,1736410240417,-605.478,0.0002082,2]
[348235129,1736410240426,-500.0,0.00020821,3]
[348235131,1736410240436,-2000.14,0.00020821,3]
[348235133,1736410240445,-436.98,0.00020821,3]
[348235135,1736410240454,-4063.2,0.00020821,2]
[348235137,1736410240464,-670.53,0.00020821,3]
[348235139,1736410240473,-838.93,0.00020821,3]
[348235141,1736410240482,-7157.93,0.00020821,3]
[348235143,1736410240492,-500.0,0.00020821,3]
[348235145,1736410240502,-500.0,0.00020821,3]
[348235147,1736410240511,-534.63,0.00020821,3]
[348235150,1736410240522,-507.4,0.00020821,3]
[348235152,1736410240531,-572.51,0.00020821,3]
[348235154,1736410240540,-1872.36,0.00020821,3]
[348235155,1736410240549,-9780.0,0.00021,2]
[348235157,1736410240559,-500.0,0.00021095,3]
[348235159,1736410240568,-2000.14,0.00021095,3]
[348235161,1736410240577,-4063.2,0.00021095,2]
[348235164,1736410240586,-670.53,0.00021095,3]
[348235165,1736410240596,-838.93,0.00021095,3]
[348235168,1736410240605,-7157.93,0.00021095,3]
[348235170,1736410240615,-500.0,0.00021095,3]
[348235172,1736410240624,-500.0,0.00021095,3]
[348235174,1736410240633,-534.63,0.00021095,3]
[348235175,1736410240642,-507.4,0.00021095,3]
[348235177,1736410240651,-1872.36,0.00021095,3]
[348235178,1736410240664,-353.074473,0.00021288,2]
[348235179,1736410240673,-353.074473,0.00021288,2]
[348235180,1736410240682,-353.074473,0.00021288,2]
[348235181,1736410240691,-353.074473,0.00021288,2]
[348235182,1736410240700,-353.074473,0.00021288,2]
[348235183,1736410240710,-353.074473,0.00021288,2]
[348235184,1736410240719,-151.0,0.00021369,2]
[348235185,1736410240729,-500.0,0.00021369,3]
[348235186,1736410240737,-2000.14,0.00021369,3]
[348235187,1736410240746,-4063.2,0.00021369,2]
[348235188,1736410240755,-670.53,0.00021369,3]
[348235189,1736410240764,-838.93,0.00021369,3]
[348235190,1736410240773,-7157.93,0.00021369,3]
[348235191,1736410240782,-500.0,0.00021369,3]
[348235192,1736410240791,-637.21821512,0.00021369,3]
[348235193,1736410240802,-534.63,0.00021369,3]
[348235194,1736410240811,-507.4,0.00021369,3]
[348235195,1736410240820,-1872.36,0.00021369,3]
[348235196,1736410240829,-187.37776064,0.00021378,2]
[348235197,1736410240838,-1000.0,0.00021475,2]
[348235199,1736410240848,-153.0,0.00021534,2]
[348235201,1736410240857,-153.0,0.00021534,2]
[348235203,1736410240866,-153.0,0.00021534,2]
[348235205,1736410240875,-153.0,0.00021534,2]
[348235207,1736410240884,-153.44,0.00021543,2]
[348235209,1736410240894,-188.95286415,0.00021549,2]
[348235211,1736410240903,-1000.0,0.00021576,2]
[348235213,1736410240915,-1589.0,0.000216,4]
[348235215,1736410240924,-1000.0,0.00021604,2]
[348235217,1736410240934,-500.0,0.00021643,3]
[348235219,1736410240944,-2000.14,0.00021643,3]
[348235221,1736410240953,-4063.2,0.00021643,2]
[348235223,1736410240963,-670.53,0.00021643,3]
[348235225,1736410240973,-838.93,0.00021643,3]
[348235227,1736410240982,-7157.93,0.00021643,3]
[348235229,1736410240991,-500.0,0.00021643,3]
[348235231,1736410241000,-534.63,0.00021643,3]
[348235233,1736410241009,-507.4,0.00021643,3]
[348235235,1736410241019,-1872.36,0.00021643,3]
[348235237,1736410241028,-305.2745915,0.00021697,2]
[348235239,1736410241037,-1261.01842176,0.00021784,2]
[348235241,1736410241046,-500.0,0.00021917,3]
[348235242,1736410241055,-2000.14,0.00021917,3]
[348235244,1736410241065,-151.0,0.00021917,2]
[348235246,1736410241074,-151.0,0.00021917,2]
[348235248,1736410241083,-151.0,0.00021917,2]
[348235250,1736410241093,-151.0,0.00021917,2]
[348235252,1736410241102,-151.0,0.00021917,2]
[348235254,1736410241111,-4063.2,0.00021917,2]
[348235256,1736410241121,-670.53,0.00021917,3]
[348235266,1736410241130,-838.93,0.00021917,3]
[348235268,1736410241221,-7157.93,0.00021917,3]
[348235270,1736410241231,-500.0,0.00021917,3]
[348235272,1736410241241,-534.63,0.00021917,3]
[348235274,1736410241251,-507.4,0.00021917,3]
[348235276,1736410241260,-1872.36,0.00021917,3]
[348235278,1736410241270,-500.0,0.00021918,2]
[348235280,1736410241278,-500.0,0.00021918,2]
[348235282,1736410241288,-500.0,0.00021918,2]
[348235284,1736410241297,-543.39510721,0.00021918,2]
[348235286,1736410241307,-187.37776064,0.00021955,2]
[348235288,1736410241316,-152.0,0.00021994,2]
[348235290,1736410241325,-152.0,0.00021994,2]
[348235292,1736410241335,-152.0,0.00021994,2]
[348235294,1736410241344,-799.58,0.00022,20]
[348235296,1736410241354,-9212.05110441,0.00022026,2]
[348235298,1736410241363,-5000.0,0.00022026,2]
[348235301,1736410241373,-5000.0,0.00022026,2]
[348235303,1736410241383,-5000.0,0.00022026,2]
[348235305,1736410241392,-151.0,0.00022026,2]
[348235306,1736410241400,-151.0,0.00022191,7]
[348235309,1736410241414,-151.0,0.00022191,7]
[348235311,1736410241423,-500.0,0.00022191,3]
[348235312,1736410241433,-2000.14,0.00022191,3]
[348235315,1736410241443,-151.0,0.00022191,7]
[348235317,1736410241452,-151.0,0.00022191,7]
[348235319,1736410241462,-4063.2,0.00022191,2]
[348235321,1736410241471,-670.53,0.00022191,3]
[348235323,1736410241480,-838.93,0.00022191,3]
[348235325,1736410241490,-7157.93,0.00022191,3]
[348235327,1736410241499,-500.0,0.00022191,3]
[348235329,1736410241507,-534.63,0.00022191,3]
[348235331,1736410241517,-507.4,0.00022191,3]
[348235333,1736410241527,-1872.36,0.00022191,3]
[348235335,1736410241537,-151.0,0.000222,5]
[348235337,1736410241546,-833.5403803,0.00022219,2]
[348235339,1736410241555,-214.7427429,0.00022356,2]
[348235341,1736410241564,-214.7427429,0.00022356,2]
[348235343,1736410241573,-214.7427429,0.00022356,2]
[348235345,1736410241582,-153.0,0.00022356,2]
[348235347,1736410241591,-154.6665079,0.00022356,2]
[348235349,1736410241600,-153.8047844,0.00022356,2]
[348235351,1736410241610,-214.7427429,0.00022356,2]
[348235353,1736410241621,-153.8047844,0.00022356,2]
[348235354,1736410241631,-153.0,0.00022356,2]
[348235356,1736410241642,-214.7427429,0.00022356,2]
[348235359,1736410241651,-153.8047844,0.00022356,2]
[348235360,1736410241664,-153.0,0.00022356,2]
[348235362,1736410241673,-428.2320951,0.00022356,2]
[348235364,1736410241683,-153.8047844,0.00022356,2]
[348235366,1736410241692,-153.8047844,0.00022356,2]
[348235369,1736410241702,-153.0,0.00022356,2]
[348235370,1736410241711,-153.0,0.00022356,2]
[348235372,1736410241720,-384.3423806,0.00022356,2]
[348235374,1736410241730,-153.0,0.00022356,2]
[348235376,1736410241739,-173.49,0.00022368,2]
[348235378,1736410241748,-151.0,0.00022368,2]
[348235380,1736410241758,-151.0,0.00022368,2]
[348235383,1736410241767,-151.0,0.00022368,2]
[348235385,1736410241777,-151.0,0.00022368,2]
[348235387,1736410241786,-151.0,0.00022368,2]
[348235389,1736410241795,-151.0,0.00022368,2]
[348235391,1736410241805,-151.0,0.00022368,2]
[348235393,1736410241814,-151.0,0.00022368,2]
[348235394,1736410241823,-151.0,0.00022368,2]
[348235397,1736410241832,-151.0,0.00022368,2]
[348235398,1736410241841,-151.0,0.00022368,2]
[348235401,1736410241851,-151.0,0.00022368,2]
[348235403,1736410241860,-151.0,0.00022368,2]
[348235405,1736410241870,-151.0,0.00022368,2]
[348235407,1736410241879,-151.0,0.00022368,2]
[348235408,1736410241888,-151.0,0.00022368,2]
[348235411,1736410241897,-151.0,0.00022368,2]
[348235413,1736410241908,-151.0,0.00022368,2]
[348235415,1736410241918,-151.0,0.00022368,2]
[348235416,1736410241927,-151.0,0.00022368,2]
[348235419,1736410241939,-151.0,0.00022368,2]
[348235421,1736410241948,-151.0,0.00022368,2]
[348235422,1736410241957,-151.0,0.00022368,2]
[348235425,1736410241967,-151.0,0.00022368,2]
[348235426,1736410241977,-151.0,0.00022368,2]
[348235428,1736410241987,-151.0,0.00022368,2]
[348235430,1736410241996,-151.0,0.00022368,2]
[348235432,1736410242006,-151.0,0.00022368,2]
[348235434,1736410242015,-151.0,0.00022368,2]
[348235436,1736410242025,-151.0,0.00022368,2]
[348235438,1736410242034,-151.0,0.00022368,2]
[348235440,1736410242042,-151.0,0.00022368,2]
[348235442,1736410242052,-151.0,0.00022368,2]
[348235444,1736410242061,-177.7,0.00022368,2]
[348235446,1736410242070,-188.95286415,0.00022373,2]
[348235448,1736410242079,-151.0,0.00022417,2]
[348235450,1736410242089,-151.0,0.00022417,2]
[348235452,1736410242099,-151.0,0.00022417,2]
[348235454,1736410242108,-151.0,0.00022417,2]
[348235456,1736410242118,-151.0,0.00022417,2]
[348235458,1736410242127,-151.0,0.00022417,2]
[348235460,1736410242136,-151.0,0.00022417,2]
[348235462,1736410242145,-151.0,0.00022417,2]
[348235464,1736410242158,-151.0,0.00022417,2]
[348235466,1736410242167,-151.0,0.00022417,2]
[348235468,1736410242177,-151.0,0.00022417,2]
[348235470,1736410242187,-151.0,0.00022417,2]
[348235473,1736410242196,-279.11,0.00022417,2]
[348235474,1736410242206,-151.0,0.00022465,7]
[348235476,1736410242217,-500.0,0.00022465,3]
[348235479,1736410242226,-2000.14,0.00022465,3]
[348235481,1736410242235,-151.0,0.00022465,7]
[348235483,1736410242244,-151.0,0.00022465,7]
[348235485,1736410242254,-151.0,0.00022465,7]
[348235487,1736410242263,-151.0,0.00022465,7]
[348235488,1736410242272,-151.0,0.00022465,7]
[348235491,1736410242282,-4063.2,0.00022465,2]
[348235493,1736410242291,-670.53,0.00022465,3]
[348235495,1736410242300,-838.93,0.00022465,3]
[348235497,1736410242310,-7157.93,0.00022465,3]
[348235499,1736410242320,-500.0,0.00022465,3]
[348235501,1736410242329,-534.63,0.00022465,3]